{"text_format":"1","workbook":"xlsx","n_sheets":3,"sheets":["Лист1","Лист2","Лист3"],"not_rendered":{"charts":0,"images":0,"macros":1,"external_links":0,"defined_names":0,"comments":0,"pivot_tables":0},"unopened":[],"bounds":{"document_bytes":16777216,"sheet_cells":100000,"rows_first":2000,"rows_last":500,"rows_between":2000,"halvings":0,"cell_chars":16384,"cell_head_chars":4096},"cells_cut":0,"cells_raw":0,"read":"whole","date_system":"1900"}

{"sheet":"Лист1","index":0,"n_rows":44,"n_cols":4,"rows_kept":44,"cut":false,"hidden":false,"merged":[[0,1,0,2]]}
["Исходный текст","Результат",null,"Должно быть"]
["Болт М10х60 8.8 цб пр 431sp-st , шт",{"$f":"LEFT(A2,FIND(\",\",A2&\",\")-1)","v":"Болт М10х60 8.8 цб пр 431sp-st "},{"$f":"LastComma(A2)","v":"шт"}]
["Ось 12х48 261sp-eco , шт",{"$f":"LEFT(A3,FIND(\",\",A3&\",\")-1)","v":"Ось 12х48 261sp-eco "},{"$f":"LastComma(A3)","v":"шт"}]
["Комплект для ворот  , компл","Комплект для ворот  ","компл"]
["Корпус улавлювача с основой optima,чр 50114, шт","Корпус улавлювача с основой optima","шт","Корпус улавлювача с основой optima,чр 50114"]
["Наконечник 17х0,060 (круг), шт","Наконечник 17х0","шт","Наконечник 17х0,060 (круг)"]
["Пластина прижимная  50х30х3,0 723sp-st, шт","Пластина прижимная  50х30х3","шт","Пластина прижимная  50х30х3,0 723sp-st"]
["Сваи п/ф 108х3,0х2500, шт","Сваи п/ф 108х3","шт","Сваи п/ф 108х3,0х2500"]
["Полоса 15х3,0, м",{"$f":"LEFT(A9,FIND(\",\",A9&\",\")-1)","v":"Полоса 15х3"},{"$f":"LastComma(A9)","v":"м"},"Полоса 15х3,0"]
["Труба 45х8,0х3000, м",{"$f":"LEFT(A10,FIND(\",\",A10&\",\")-1)","v":"Труба 45х8"},{"$f":"LastComma(A10)","v":"м"},"Труба 45х8,0х3000"]
["Круг 11,8 ст20 калибр., м","Круг 11","м","Круг 11,8 ст20 калибр."]
["Заклепка 5,0х8 AL/St пл /3-4,5 DIN 542sp-st, шт","Заклепка 5","шт","Заклепка 5,0х8 AL/St пл /3-4,5 DIN 542sp-st"]
[null,""]
[null,"не верный результат"]
[null,""]
[null,""]
[null,""]
[null,""]
[null,""]
[null,""]
[null,""]
[null,""]
[null,""]
[null,""]
[null,""]
[null,""]
[null,""]
[null,""]
[null,""]
[null,""]
[null,""]
[null,""]
[null,""]
[null,""]
[null,""]
[null,""]
[null,""]
[null,""]
[null,""]
[null,""]
[null,""]
[null,""]
[null,""]
[null,""]

{"sheet":"Лист2","index":1,"n_rows":0,"n_cols":0,"rows_kept":0,"cut":false,"hidden":false,"merged":[]}

{"sheet":"Лист3","index":2,"n_rows":0,"n_cols":0,"rows_kept":0,"cut":false,"hidden":false,"merged":[]}